Cogmind - Beta 15 @@@ ROGUE MODE // 2025.06.07 @ 15:33:38 // Winter2019/RPGLIKE Player: Jack Result: Destroyed by A6 with Enhanced Force Lance Performance ------------- Evolutions (9) 4500 Regions Visited (31) 6200 Robots Destroyed (530) 2650 Value Destroyed (28111) 28111 Prototype IDs (367) 7340 Alien Tech Used (7) 1400 Bonus (37688) 37688 TOTAL SCORE: 87889 Bonus ------- High Alert Combat Kills 5772 Follower Combat Kills 574 Network Hubs Disabled 800 Met Data Miner 300 Used Data Conduit 3000 Met Imprinter 300 Met Warlord at Base 500 MAIN.C Attacked Warlord 500 Warlord Defense Kills 1810 A7 Reached Mainframe 300 Used Core Reset Matrix 3000 Pursued by Intercept 1500 Destroyed MAIN.C Guards 500 Met MAIN.C 5000 Destroyed MAIN.C Shell 5000 Destroyed MAIN.C 10000 Met Warlord at Command 2000 Met Architect 300 Friendly Fire -3468 Cogmind --------- Core Integrity 0/1900 Matter 266/300 Energy 74/700 System Corruption 9% Temperature Cool (0) Movement Flying (34) Location -1/Access_0 Parts ------- > --- POWER (1) -------- Zionite Light DM Reactor > --- PROPULSION (3) --- Nuclear Pulse Array Electron Diverter > --- UTILITY (10) ----- Zionite Biocell Advanced Weight Redist. System (fused) Experimental Core Analyzer Experimental Core Analyzer Improved Armor Integrity Analyzer Microactuators Microactuators Actuator Array Graphene Brace Improved Force Field > --- WEAPON (4) ------- Remote Datajack Sigix Broadsword > --- INVENTORY (7) ---- Protomatter-68 Zionite Biocell (205) Sigix Broadsword Peak State ------------ > --- POWER ------------ Zionite Light DM Reactor > --- PROPULSION ------- Nuclear Pulse Array Electron Diverter > --- UTILITY ---------- Zionite Biocell Advanced Weight Redist. System Experimental Core Analyzer Experimental Core Analyzer Improved Armor Integrity Analyzer Microactuators Microactuators Actuator Array Graphene Brace Improved Force Field > --- WEAPON ----------- Sigix Broadsword Sigix Broadsword > --- INVENTORY -------- Protomatter Protomatter Protomatter Zionite Biocell Transdimensional Reconstructor Remote Datajack [Rating: 148] Favorites ----------- Power Zionite Light DM Reactor Engine Light Ion Engine Power Core Light Nuclear Core Reactor Zionite Light DM Reactor Propulsion Nuclear Pulse Array Hover Unit Zionite Glidesys I Flight Unit Nuclear Pulse Array Utility Microactuators Device Microactuators Storage Zionite Biocell Processor Core Analyzer Hackware Quantum Router Protection Backup Plating I Weapon Phasing Sabre Energy Gun Small Laser Ballistic Gun Light Assault Rifle Special Weapon Remote Datajack Slashing Weapon Phasing Sabre Build | -11 -10 -9 -8 -7 -7 -7 -7 -7 -6 -6 -6 -6 -6 -5 -5 -5 -5 -5 -4 -4 -4 -4 -4 -4 -3 -3 -3 -2 -1 -1 -1 ------- Run | Yrd Mat Mat Mat Fac Low Low Zio Dee Pro Fac Low Low Dat Pro Fac Upp Upp War Pro Fac Ext Cet Arc Hub Res Qua Sec Res Acc Com Ac0 Slots Evolved 14 | 4 . . . 1 . . . . . 4 . . 1 . 2 . . . . . . . . . 1 . 1 . . . . Power . | . . . . . . . . . . . . . . . . . . . . . . . . . . . . . . . . Propulsion 2 | 1 . . . . . . . . . . . . . . 1 . . . . . . . . . . . . . . . . Utility 9 | . . . . 1 . . . . . 4 . . 1 . 1 . . . . . . . . . 1 . 1 . . . . Weapon 3 | 3 . . . . . . . . . . . . . . . . . . . . . . . . . . . . . . . Parts Attached 63 | 1 4 5 11 7 . . 2 8 2 7 . . 3 . 5 . . 1 . . 1 . . 1 . 2 3 . . . . Power 6 | . 1 1 2 . . . . 1 1 . . . . . . . . . . . . . . . . . . . . . . Engine 4 | . 1 1 2 . . . . . . . . . . . . . . . . . . . . . . . . . . . . Core 1 | . . . . . . . . . 1 . . . . . . . . . . . . . . . . . . . . . . Reactor 1 | . . . . . . . . 1 . . . . . . . . . . . . . . . . . . . . . . . Propulsion 21 | . 2 2 3 4 . . . 3 1 3 . . . . 2 . . 1 . . . . . . . . . . . . . Treads . | . . . . . . . . . . . . . . . . . . . . . . . . . . . . . . . . Leg . | . . . . . . . . . . . . . . . . . . . . . . . . . . . . . . . . Wheel . | . . . . . . . . . . . . . . . . . . . . . . . . . . . . . . . . Hover 3 | . . . . . . . . 3 . . . . . . . . . . . . . . . . . . . . . . . Flight 18 | . 2 2 3 4 . . . . 1 3 . . . . 2 . . 1 . . . . . . . . . . . . . Utility 18 | . . . 1 3 . . . 2 . 4 . . 3 . 1 . . . . . . . . 1 . . 3 . . . . Device 7 | . . . . 2 . . . 1 . 2 . . . . 1 . . . . . . . . 1 . . . . . . . Storage 2 | . . . . . . . . 1 . 1 . . . . . . . . . . . . . . . . . . . . . Processor 5 | . . . . . . . . . . 1 . . 1 . . . . . . . . . . . . . 3 . . . . Hackware 2 | . . . . . . . . . . . . . 2 . . . . . . . . . . . . . . . . . . Protection 2 | . . . 1 1 . . . . . . . . . . . . . . . . . . . . . . . . . . . Artifact . | . . . . . . . . . . . . . . . . . . . . . . . . . . . . . . . . Weapon 18 | 1 1 2 5 . . . 2 2 . . . . . . 2 . . . . . 1 . . . . 2 . . . . . Energy Gun 3 | . 1 . . . . . . 2 . . . . . . . . . . . . . . . . . . . . . . . Energy Cannon . | . . . . . . . . . . . . . . . . . . . . . . . . . . . . . . . . Ballistic Gun 4 | 1 . 2 1 . . . . . . . . . . . . . . . . . . . . . . . . . . . . Ballistic Cannon . | . . . . . . . . . . . . . . . . . . . . . . . . . . . . . . . . Launcher . | . . . . . . . . . . . . . . . . . . . . . . . . . . . . . . . . Special Weapon 1 | . . . . . . . . . . . . . . . . . . . . . 1 . . . . . . . . . . Impact Weapon . | . . . . . . . . . . . . . . . . . . . . . . . . . . . . . . . . Slashing Weapon 10 | . . . 4 . . . 2 . . . . . . . 2 . . . . . . . . . . 2 . . . . . Piercing Weapon . | . . . . . . . . . . . . . . . . . . . . . . . . . . . . . . . . Special Melee Weapon . | . . . . . . . . . . . . . . . . . . . . . . . . . . . . . . . . Unidentified Prototypes 12 | . . . . . . . . 6 . 1 . . 2 . . . . . . . . . . . . 3 . . . . . Parts Lost 1 | . . . 1 . . . . . . . . . . . . . . . . . . . . . . . . . . . . Power . | . . . . . . . . . . . . . . . . . . . . . . . . . . . . . . . . Propulsion 1 | . . . 1 . . . . . . . . . . . . . . . . . . . . . . . . . . . . Utility . | . . . . . . . . . . . . . . . . . . . . . . . . . . . . . . . . Weapon . | . . . . . . . . . . . . . . . . . . . . . . . . . . . . . . . . Highest Loss Streak 1 | . . . 1 . . . . . . . . . . . . . . . . . . . . . . . . . . . . To Critical Strikes . | . . . . . . . . . . . . . . . . . . . . . . . . . . . . . . . . Average Backups 2 | . . . . . . . . 1 3 2 2 2 1 1 1 3 3 3 3 3 3 3 3 3 2 2 2 3 3 3 2 Power . | . . . . . . . . . 1 . . . . . . . . . . . . . . . . . . . . . . Propulsion . | . . . . . . . . . . . . . . . . . . . . . . . . . . . . . . . . Utility 1 | . . . . . . . . 1 2 1 2 2 1 1 1 2 2 2 2 2 2 2 2 2 1 1 1 1 1 1 1 Weapon . | . . . . . . . . . . . . . . . . . . . . . . . . . . . . . . . . Tool/Special . | . . . . . . . . . . . . . . . . . . . . . . . . . . . . . . . . Unused Backups 2 | . . . . . . . . . . 1 . . . . . . . . . 1 . . . . . . . . . . . Power . | . . . . . . . . . . . . . . . . . . . . . . . . . . . . . . . . Propulsion . | . . . . . . . . . . . . . . . . . . . . . . . . . . . . . . . . Utility 2 | . . . . . . . . . . 1 . . . . . . . . . 1 . . . . . . . . . . . Weapon . | . . . . . . . . . . . . . . . . . . . . . . . . . . . . . . . . Tool/Special . | . . . . . . . . . . . . . . . . . . . . . . . . . . . . . . . . Average Slot Usage (%) 90 | . 19 79 97 99 100 100 100 98 100 99 100 100 100 100 92 93 93 92 93 92 92 93 93 93 93 85 82 83 83 83 83 Engine 2 | . . 12 12 11 11 11 11 11 10 . . . . . . . . . . . . . . . . . . . . . . Reactor 4 | . . . . . . . . . . 3 7 7 7 7 6 6 6 6 6 5 6 6 6 6 5 5 5 5 5 5 5 Flight 14 | . 2 25 22 23 22 22 22 20 22 18 15 15 14 14 8 12 12 12 12 12 11 12 12 12 11 11 11 11 11 11 11 Device 27 | . . . . 11 22 22 22 21 22 28 30 30 28 28 28 31 31 31 31 31 30 31 31 31 33 34 34 33 33 33 33 Storage 4 | . . . . . . . . . . 4 7 7 7 7 6 6 6 6 6 6 6 6 6 6 5 5 5 5 5 5 5 Processor 9 | . . . . . . . . . . . 7 7 12 14 13 12 12 12 12 12 12 12 12 12 11 11 12 16 16 16 16 Ballistic Gun 1 | . 12 17 40 . . . . . . . . . . . . . . . . . . . . . . . . . . . . Slashing Weapon 24 | . . . . 46 44 44 44 42 44 37 30 30 28 28 27 25 25 24 25 25 24 25 25 25 23 14 10 11 11 11 10 Peak Build Rating 148 | 1 5 10 20 35 35 35 39 46 41 67 67 67 77 71 82 82 82 89 89 89 90 90 90 93 96 129 148 148 148 148 147 Average Rating 86 | . 1 6 9 26 35 35 38 39 40 51 67 67 69 70 75 82 82 85 89 88 89 90 89 92 94 119 134 148 148 147 143 On Entrance 71 | . 1 5 10 20 35 35 35 39 41 40 67 67 67 70 71 82 82 82 89 89 89 90 90 90 93 96 128 148 148 148 147 Naked Turns . | . . . . . . . . . . . . . . . . . . . . . . . . . . . . . . . . Heaviest Build 53 | 1 5 14 18 20 19 19 21 22 23 41 41 41 41 41 48 48 48 48 48 48 48 48 48 48 49 53 53 53 53 53 53 Greatest Support 65 | 8 13 18 18 27 27 27 27 43 27 46 46 46 46 46 51 51 51 55 55 55 55 55 55 55 55 55 65 65 65 65 65 Greatest Overweight (x) 1 | . . . . 1 . . . . . . . . . . 1 . . 1 . . 1 . . . . . . . . 1 . Average Overweight (x) . | . . . . . . . . . . . . . . . . . . . . . . . . . . . . . . . . Largest Inventory Capacity 7 | . . . 2 2 2 3 3 3 3 3 3 3 3 5 5 5 5 5 5 5 6 6 6 6 6 6 6 7 7 7 7 Average Capacity 4 | . . . 1 2 2 2 3 3 3 3 3 3 3 4 5 5 5 5 5 5 5 6 6 6 6 6 6 6 7 7 7 Most Carried 7 | . . . 2 2 2 3 3 3 3 3 3 3 3 5 5 5 5 5 5 5 6 6 6 6 6 6 6 7 7 7 5 Average Carried 3 | . . . . 1 1 2 3 2 3 2 2 3 2 4 4 5 4 4 3 4 5 6 5 6 4 4 4 6 6 3 2 Final Capacity 7 | . . . 2 2 2 3 3 3 3 3 3 3 3 5 5 5 5 5 5 5 6 6 6 6 6 6 6 7 7 7 7 Final Carried 7 | . . . 2 1 2 3 3 3 3 2 3 3 3 5 5 5 5 3 3 5 6 6 6 6 3 5 6 6 7 3 4 Class Distribution -------------------- 41% | Hacker-Gladiator 27% | Alien-Gladiator 15% | Machinist-Gladiator 8% | Commander-Gladiator Dominant Class ---------------- Mutant | -10/Materials Mutant | -9/Materials Scavenger-Gunner | -8/Materials Hacker-Gladiator | -7/Factory Hacker-Gladiator | -7/Lower Caves Hacker-Gladiator | -7/Lower Caves Hacker-Gladiator | -7/Zion Hacker-Gladiator | -7/Deep Caves Hacker-Gladiator | -6/Proximity Caves Hacker-Gladiator | -6/Factory Hacker-Gladiator | -6/Lower Caves Hacker-Gladiator | -6/Lower Caves Hacker-Gladiator | -6/Data Miner Hacker-Gladiator | -5/Proximity Caves Hacker-Gladiator | -5/Factory Machinist-Gladiator | -5/Upper Caves Machinist-Gladiator | -5/Upper Caves Machinist-Gladiator | -5/Warlord Machinist-Gladiator | -4/Proximity Caves Machinist-Gladiator | -4/Factory Commander-Gladiator | -4/Extension Commander-Gladiator | -4/Cetus Commander-Gladiator | -4/Archives Machinist-Gladiator | -4/Hub_04(d) Machinist-Gladiator | -3/Research Hacker-Gladiator | -3/Quarantine Hacker-Gladiator | -3/Section 7 Alien-Gladiator | -2/Research Alien-Gladiator | -1/Access Alien-Gladiator | -1/Command Alien-Gladiator | -1/Access_0 Resources | -11 -10 -9 -8 -7 -7 -7 -7 -7 -6 -6 -6 -6 -6 -5 -5 -5 -5 -5 -4 -4 -4 -4 -4 -4 -3 -3 -3 -2 -1 -1 -1 ----------- Run | Yrd Mat Mat Mat Fac Low Low Zio Dee Pro Fac Low Low Dat Pro Fac Upp Upp War Pro Fac Ext Cet Arc Hub Res Qua Sec Res Acc Com Ac0 Matter Collected 2027 | 72 . 287 308 137 . . 20 165 20 80 10 . 30 . 73 . . 60 . 50 105 . . 10 10 92 141 19 18 242 78 Remotely . | . . . . . . . . . . . . . . . . . . . . . . . . . . . . . . . . Salvage Created 30113 | . 21 327 370 1194 324 225 484 702 1270 1973 344 138 429 300 3510 388 649 1028 2798 343 2358 138 250 14 1151 868 1350 413 1661 4591 502 Parts 1462 | . 3 26 30 68 15 10 22 31 28 100 30 8 16 22 157 20 18 36 94 27 124 14 8 2 63 46 75 44 102 175 48 Haulers Intercepted 1 | . . . . . . . . . . . . . . . . . . . 1 . . . . . . . . . . . . Recyclers Shooed 3 | . . . 1 1 . . . . . . . . . . . . . . . . . . . . . . 1 . . . . Parts Field Recycled . | . . . . . . . . . . . . . . . . . . . . . . . . . . . . . . . . Retrieved Matter . | . . . . . . . . . . . . . . . . . . . . . . . . . . . . . . . . Parts Self-Destructed 236 | . . . . . 6 10 2 . 26 . 30 8 . 22 . 20 18 . 94 . . . . . . . . . . . . Prevented . | . . . . . . . . . . . . . . . . . . . . . . . . . . . . . . . . Kills | -11 -10 -9 -8 -7 -7 -7 -7 -7 -6 -6 -6 -6 -6 -5 -5 -5 -5 -5 -4 -4 -4 -4 -4 -4 -3 -3 -3 -2 -1 -1 -1 ------- Run | Yrd Mat Mat Mat Fac Low Low Zio Dee Pro Fac Low Low Dat Pro Fac Upp Upp War Pro Fac Ext Cet Arc Hub Res Qua Sec Res Acc Com Ac0 Combat Hostiles Destroyed 456 | . 2 12 16 27 3 7 6 14 19 33 8 6 4 8 51 12 7 16 39 6 37 4 3 . 15 8 15 9 36 26 7 Melee 426 | . . . . 27 3 7 6 14 19 33 8 6 4 8 51 12 7 16 39 6 37 4 3 . 15 8 15 9 36 26 7 Guns 30 | . 2 12 16 . . . . . . . . . . . . . . . . . . . . . . . . . . . . Classes Destroyed 26 | . 1 3 3 4 3 . . 2 . 1 . . . . 1 . . 3 1 . 1 . . . . 1 2 . . . . Worker 18 | . . . . 3 . . . . . 3 . . . . 3 . . . . . . . . 1 3 3 1 . 1 . . Builder 8 | . . . . 1 . . . . . . . . . . 3 . . . . . 1 . . . . 1 . . 2 . . Tunneler 3 | . . . . 1 . . . . . 2 . . . . . . . . . . . . . . . . . . . . . Hauler 1 | . . . . . . . . . . . . . . . . . . . 1 . . . . . . . . . . . . Recycler 11 | . . . 1 1 . . . . . 2 . . . . 4 . . . . . 1 . . . 1 . 1 . . . . Minesweeper 3 | . . . . . 1 . . . . . . . . . . . 1 . 1 . . . . . . . . . . . . Mechanic 2 | . . . . . . . . . . . . . . . . . . 1 1 . . . . . . . . . . . . Operator 2 | . . . . . . . . . . . . . . . 1 . . . . 1 . . . . . . . . . . . Watcher 16 | . . . 1 2 . . . . . 1 . . . . 3 . . . . . . 1 . . 1 3 1 . 2 1 . Swarmer 102 | . 2 6 7 12 . 7 . . 4 8 3 3 . . 11 9 . . 7 . 3 . . . . . 2 . 13 5 . Grunt 159 | . . 3 4 10 2 . . . 10 16 3 2 . 5 25 2 7 11 21 4 12 . . . 8 3 5 . 3 3 . Brawler 10 | . . . . . . . . . 1 . . . . 1 1 . . 2 4 . . . . . . . . . 1 . . Duelist 6 | . . 1 . . . . . . 1 . . 1 . . . . . . 3 . . . . . . . . . . . . Protector 2 | . . . . . . . . . . . . . . . . . . 1 . . 1 . . . . . . . . . . Researcher 6 | . . . . . . . . . . . . . . . . . . . . . . . . . . 4 2 . . . . Sentry 51 | . . 2 4 3 . . . . 3 5 . . . 1 2 1 . . 2 2 15 . 3 . . . 2 . 4 2 . Demolisher 1 | . . . . . . . . . . . . . . . . . . . . . 1 . . . . . . . . . . Specialist 3 | . . . . . . . . . . . . . . . . . . 2 . . 1 . . . . . . . . . . Hunter 36 | . . . 1 1 . . . . . . . . . . 2 . . . 2 . . . . . 2 5 2 6 9 6 . Programmer 29 | . . . . 1 . . . . . 3 1 . . . 7 . . . . . . . . . 5 . 1 3 2 6 . Heavy 1 | . . . . . . . . . . . . . . . . . . . . . . . . . . . 1 . . . . Behemoth 7 | . . . . . . . . . . 1 1 . . 1 1 . . . . . 2 . . . . . . . . 1 . Cetus Guard 4 | . . . . . . . . . . . . . . . . . . . . . . 4 . . . . . . . . . Enhanced Grunt 8 | . . . . . . . . . . . . . 4 . . . . . . . . . . . . . . . . . 4 Enhanced Sentry 1 | . . . . . . . . . . . . . . . . . . . . . . . . . . . . . . . 1 Enhanced Hunter 2 | . . . . . . . . . . . . . . . . . . . . . . . . . . . . . . . 2 Tracker 3 | . . . . . . . . . . . . . . . 1 . . . . . . . . . . . . . 2 . . Combat Programmer 5 | . . . . . . . . . . . . . . . 1 . . . . . . . . . . . . . 2 2 . Executioner 2 | . . . . . . . . . . . . . . . . . . . . . . . . . . . 2 . . . . Z-Light 8 | . . . . . . . . 8 . . . . . . . . . . . . . . . . . . . . . . . Assembled 6 | . . . . . . . . 6 . . . . . . . . . . . . . . . . . . . . . . . Thug 4 | . . . . . . . . . . . . . . . . . . . . . . . . . . . . . . 4 . Savage 1 | . . . . . 1 . . . . . . . . . . . . . . . . . . . . . . . . . . Butcher 3 | . . . . . 1 . . . . . . . . . . . . . . . 2 . . . . . . . . . . Marauder 1 | . . . . . . . . . . . . . . . . . . . . . . . . . . . . . . 1 . Mutant 8 | . . . . . 2 1 5 . . . . . . . . . . . . . . . . . . . . . . . . Best Kill Streak 14 | . 1 3 7 7 3 4 5 4 6 11 3 3 2 3 14 8 6 7 7 3 8 5 3 1 7 9 7 5 9 8 2 Combat Bots Only 9 | . 1 3 6 4 2 4 5 4 6 7 3 3 2 3 8 8 6 7 6 3 7 4 3 . 7 3 7 5 9 8 2 Max Kills in Single Turn 2 | . 1 1 2 2 2 1 1 1 2 1 1 1 1 1 2 2 1 2 2 1 2 2 1 1 1 1 2 1 1 1 1 Gunslinging 1 | . . . 1 . . . . . . . . . . . . . . . . . . . . . . . . . . . . Exploded . | . . . . . . . . . . . . . . . . . . . . . . . . . . . . . . . . Melee 2 | . . . . 2 1 1 1 1 2 1 1 1 1 1 2 2 1 2 2 1 2 1 1 . 1 1 2 1 1 1 1 Uniques/NPCs Destroyed 5 | . . . . . . . 1 . . . . . 1 . . . . . . . . . . . . . . . . 2 1 Imprinter (-7/Zion) Data Miner (-6/Data Miner) MAIN.C Shell (-1/Command) MAIN.C (-1/Command) A8 (-1/Access_0) Combat | -11 -10 -9 -8 -7 -7 -7 -7 -7 -6 -6 -6 -6 -6 -5 -5 -5 -5 -5 -4 -4 -4 -4 -4 -4 -3 -3 -3 -2 -1 -1 -1 -------- Run | Yrd Mat Mat Mat Fac Low Low Zio Dee Pro Fac Low Low Dat Pro Fac Upp Upp War Pro Fac Ext Cet Arc Hub Res Qua Sec Res Acc Com Ac0 Hostile Shots Fired 2591 | . 14 74 78 118 1 48 40 45 74 121 26 23 10 47 164 22 14 148 164 15 123 25 14 21 115 69 79 64 316 287 232 Missed 1041 | . 7 32 18 40 1 24 19 19 37 49 10 8 2 17 65 16 6 61 67 8 42 9 4 10 43 25 32 37 121 115 97 Hits 1550 | . 7 42 60 78 . 24 21 26 37 72 16 15 8 30 99 6 8 87 97 7 81 16 10 11 72 44 47 27 195 172 135 Melee 29 | . . 2 . . . . 2 3 . . . 1 . 1 . . . 5 7 . . . . . . . . . 2 . 6 Projectile 1521 | . 7 40 60 78 . 24 19 23 37 72 16 14 8 29 99 6 8 82 90 7 81 16 10 11 72 44 47 27 193 172 129 AOE 12 | . . . . . . . . . . . . . . . . . . . . . . . . . . . . . 1 11 . Critical Strikes 76 | . . . 3 2 . 1 1 . 1 4 . . . 2 5 . 1 3 5 . 5 1 1 . 3 1 . 1 14 9 13 Actively Blocked 41 | . . . . . . . . . . . . . . . . . . . . . . . . . 3 1 . 1 14 9 13 Part Disruptions 9 | . . . . . . . . 1 . 1 . . . . 1 . . . . . . . . . 1 . . . 1 3 1 Damage Taken 19190 | . 63 539 687 1014 . 268 293 566 529 805 79 113 142 232 1013 38 61 888 805 54 693 170 100 83 786 378 497 403 1770 3164 2957 Core 15467 | . 53 427 556 784 . 232 249 468 455 680 62 98 123 188 834 32 47 711 638 42 569 141 83 64 639 295 385 313 1383 2513 2403 Absorbed by Shields 10541 | . . . . . . . . . . 213 83 119 145 239 893 42 63 581 836 59 729 179 104 88 546 343 521 296 1427 1777 1258 Redirected to Core 11907 | . 34 268 396 518 . 119 142 342 247 390 50 49 67 126 538 17 39 544 496 32 366 101 52 57 441 269 363 313 1274 2282 1975 Ignored by Resistances 5666 | . . . . . . 60 16 135 129 242 35 51 74 110 294 20 33 339 394 33 395 96 56 32 191 198 224 138 851 1092 428 Regen/Repaired (Parts) 950 | . . . . . . . . . . 46 . . . . . . . . . . . . . . . 29 61 37 119 364 294 Core Remaining (%) 87 | 100 100 40 100 . . . . . 56 . . . . 100 . . . . 88 . . . . 92 . . 99 100 . . . Volleys Fired 105 | . 8 35 38 . . . . 8 . . . . . . . . . . . . 5 . . . . . 2 . . . 9 Largest 4 | . 2 4 4 . . . . 1 . . . . . . . . . . . . 1 . . . . . 1 . . . 1 Hottest 103 | . 60 103 103 . . . . 60 . . . . . . . . . . . . 5 . . . . . 5 . . . 5 Shots Fired 272 | . 16 82 150 . . . . 8 . . . . . . . . . . . . 5 . . . . . 2 . . . 9 Gun 256 | . 16 82 150 . . . . 8 . . . . . . . . . . . . . . . . . . . . . . . Cannon . | . . . . . . . . . . . . . . . . . . . . . . . . . . . . . . . . Launcher . | . . . . . . . . . . . . . . . . . . . . . . . . . . . . . . . . Special 16 | . . . . . . . . . . . . . . . . . . . . . 5 . . . . . 2 . . . 9 Kinetic 180 | . 8 47 125 . . . . . . . . . . . . . . . . . . . . . . . . . . . . Thermal 70 | . 8 35 25 . . . . 2 . . . . . . . . . . . . . . . . . . . . . . . Explosive . | . . . . . . . . . . . . . . . . . . . . . . . . . . . . . . . . Electromagnetic . | . . . . . . . . . . . . . . . . . . . . . . . . . . . . . . . . Phasic 6 | . . . . . . . . 6 . . . . . . . . . . . . . . . . . . . . . . . Robot Hit Streak 14 | . 2 11 14 . . . . 3 . . . . . . . . . . . . 2 . . . . . 1 . . . 3 Robot Miss Streak 4 | . 2 4 4 . . . . 1 . . . . . . . . . . . . 2 . . . . . 1 . . . 4 Penetration Max . | . . . . . . . . . . . . . . . . . . . . . . . . . . . . . . . . Secondary Targets 7 | . . 2 5 . . . . . . . . . . . . . . . . . . . . . . . . . . . . Max Gunslinging Chain 1 | . . 1 1 . . . . . . . . . . . . . . . . . . . . . . . . . . . . Shots Hit Robots 1617 | . 3 50 93 67 19 10 21 42 52 118 20 21 31 34 163 18 18 60 136 19 134 15 9 1 80 45 49 18 95 127 49 Core Hits 809 | . 3 24 42 34 8 6 11 23 23 54 11 9 16 14 81 12 10 30 71 11 61 10 5 1 30 23 25 11 46 75 29 Critical Kills . | . . . . . . . . . . . . . . . . . . . . . . . . . . . . . . . . Critical Parts Destroyed 1 | . . . 1 . . . . . . . . . . . . . . . . . . . . . . . . . . . . Critical Strikes 173 | . . . 1 5 3 . 2 4 9 19 2 3 12 5 18 . 4 11 20 4 16 2 1 . 9 2 5 1 8 2 5 Destroy 1 | . . . 1 . . . . . . . . . . . . . . . . . . . . . . . . . . . . Sever 172 | . . . . 5 3 . 2 4 9 19 2 3 12 5 18 . 4 11 20 4 16 2 1 . 9 2 5 1 8 2 5 Melee Attacks 2197 | . . . . 140 21 19 28 64 67 162 36 32 97 58 273 22 25 70 191 40 147 19 11 12 112 71 71 21 131 203 54 Impact . | . . . . . . . . . . . . . . . . . . . . . . . . . . . . . . . . Slashing 2197 | . . . . 140 21 19 28 64 67 162 36 32 97 58 273 22 25 70 191 40 147 19 11 12 112 71 71 21 131 203 54 Piercing . | . . . . . . . . . . . . . . . . . . . . . . . . . . . . . . . . Sneak Attacks 111 | . . . . 12 11 1 2 . 6 10 . . 1 . 11 . 3 . 9 3 8 . . 1 5 9 4 . 5 10 . Combat Hostiles 19 | . . . . 2 1 . 1 . . 2 . . . . . . 1 . 3 3 3 . . . . . 1 . 2 . . Follow-up Attacks 444 | . . . . 26 6 6 9 17 15 30 9 8 13 11 42 6 7 26 47 5 58 7 4 . 30 9 10 4 11 19 9 Damage Inflicted 87285 | . 28 500 1005 2871 1052 421 1036 2030 2314 5363 835 766 1304 1503 7933 931 989 2548 6374 1127 6377 676 455 71 3931 4012 3850 1598 7612 14531 3242 Guns 1599 | . 28 500 1005 . . . . 66 . . . . . . . . . . . . . . . . . . . . . . . Cannons . | . . . . . . . . . . . . . . . . . . . . . . . . . . . . . . . . Explosions . | . . . . . . . . . . . . . . . . . . . . . . . . . . . . . . . . Melee 85686 | . . . . 2871 1052 421 1036 1964 2314 5363 835 766 1304 1503 7933 931 989 2548 6374 1127 6377 676 455 71 3931 4012 3850 1598 7612 14531 3242 Ramming . | . . . . . . . . . . . . . . . . . . . . . . . . . . . . . . . . Kinetic 1067 | . 6 227 834 . . . . . . . . . . . . . . . . . . . . . . . . . . . . Thermal 466 | . 22 273 171 . . . . . . . . . . . . . . . . . . . . . . . . . . . . Explosive . | . . . . . . . . . . . . . . . . . . . . . . . . . . . . . . . . Electromagnetic . | . . . . . . . . . . . . . . . . . . . . . . . . . . . . . . . . Impact . | . . . . . . . . . . . . . . . . . . . . . . . . . . . . . . . . Slashing 85686 | . . . . 2871 1052 421 1036 1964 2314 5363 835 766 1304 1503 7933 931 989 2548 6374 1127 6377 676 455 71 3931 4012 3850 1598 7612 14531 3242 Piercing . | . . . . . . . . . . . . . . . . . . . . . . . . . . . . . . . . Phasic 66 | . . . . . . . . 66 . . . . . . . . . . . . . . . . . . . . . . . Highest Corruption 9 | . . . . 1 1 1 1 1 1 . . . . . 3 3 3 3 . . . . . . 8 8 . 2 3 7 9 Average Corruption 4 | . . . . 1 1 1 1 1 1 . . . . . 1 3 3 3 . . . . . . 6 8 . 1 2 6 7 Corruption Purged . | . . . . . . . . . . . . . . . . . . . . . . . . . . . . . . . . Corruption Blocked . | . . . . . . . . . . . . . . . . . . . . . . . . . . . . . . . . Effects 134 | . . . . 3 . 3 1 2 2 . . . . . 10 3 1 . . . . . . . 5 9 . 3 4 81 7 Message Errors 26 | . . . . . . 2 . . . . . . . . . 1 1 . . . . . . . 2 4 . . . 15 1 Matter Fused 40 | . . . . 1 . . . 1 . . . . . . 2 . . . . . . . . . . 3 . . 2 30 1 Heat Flow Errors 18 | . . . . 1 . 1 1 1 . . . . . . 1 1 . . . . . . . . 1 . . 1 1 8 1 Energy Discharges 22 | . . . . . . . . . 2 . . . . . 4 . . . . . . . . . 1 . . 2 . 12 1 Parts Fused 1 | . . . . . . . . . . . . . . . . . . . . . . . . . . . . . 1 . . Data Loss (minor) 8 | . . . . 1 . . . . . . . . . . 1 . . . . . . . . . 1 1 . . . 4 . Data Loss (major) 12 | . . . . . . . . . . . . . . . . 1 . . . . . . . . . 1 . . . 7 3 Alerts 7 | . . . . . . . . . . . . . . . 2 . . . . . . . . . . . . . . 5 . Overload Shots . | . . . . . . . . . . . . . . . . . . . . . . . . . . . . . . . . Overflow Damage 6011 | . . . . 337 116 65 198 211 103 432 . . 4 38 423 13 57 98 254 12 201 . . . 335 570 263 61 554 1568 98 Projectiles . | . . . . . . . . . . . . . . . . . . . . . . . . . . . . . . . . Explosions . | . . . . . . . . . . . . . . . . . . . . . . . . . . . . . . . . Melee 6011 | . . . . 337 116 65 198 211 103 432 . . 4 38 423 13 57 98 254 12 201 . . . 335 570 263 61 554 1568 98 Knockbacks . | . . . . . . . . . . . . . . . . . . . . . . . . . . . . . . . . Impact . | . . . . . . . . . . . . . . . . . . . . . . . . . . . . . . . . Kinetic . | . . . . . . . . . . . . . . . . . . . . . . . . . . . . . . . . Secondary . | . . . . . . . . . . . . . . . . . . . . . . . . . . . . . . . . Self-Inflicted Damage . | . . . . . . . . . . . . . . . . . . . . . . . . . . . . . . . . Shots . | . . . . . . . . . . . . . . . . . . . . . . . . . . . . . . . . Rammed . | . . . . . . . . . . . . . . . . . . . . . . . . . . . . . . . . Targets Rammed . | . . . . . . . . . . . . . . . . . . . . . . . . . . . . . . . . Kicked . | . . . . . . . . . . . . . . . . . . . . . . . . . . . . . . . . Crushed . | . . . . . . . . . . . . . . . . . . . . . . . . . . . . . . . . Highest Temperature 286 | . 20 160 162 133 . 112 277 193 19 20 14 17 19 36 257 123 27 91 110 20 76 58 28 12 286 . 4 59 87 203 37 Average Temperature 38 | . 8 52 48 44 . 66 131 35 7 7 5 7 6 9 48 38 11 34 20 10 21 32 13 7 77 . 4 59 51 85 37 Received Heat Transfer 2841 | . . 57 234 192 . 12 40 218 180 298 16 40 . 85 205 8 39 382 249 20 165 36 12 14 80 22 42 12 40 121 22 Siege Activations . | . . . . . . . . . . . . . . . . . . . . . . . . . . . . . . . . Martial Activations . | . . . . . . . . . . . . . . . . . . . . . . . . . . . . . . . . Shielding Activations . | . . . . . . . . . . . . . . . . . . . . . . . . . . . . . . . . Robots Disrupted . | . . . . . . . . . . . . . . . . . . . . . . . . . . . . . . . . Combat Hostiles . | . . . . . . . . . . . . . . . . . . . . . . . . . . . . . . . . Robots Corrupted . | . . . . . . . . . . . . . . . . . . . . . . . . . . . . . . . . Combat Hostiles . | . . . . . . . . . . . . . . . . . . . . . . . . . . . . . . . . Parts Fried 3 | . . . . . . . . . . . . . . . . . . . . . 2 . . . . . . . . 1 . Impact Corruptions . | . . . . . . . . . . . . . . . . . . . . . . . . . . . . . . . . Robots Melted . | . . . . . . . . . . . . . . . . . . . . . . . . . . . . . . . . Combat Hostiles . | . . . . . . . . . . . . . . . . . . . . . . . . . . . . . . . . Parts Melted 2 | . 1 . . . . . . . . . . . . . 1 . . . . . . . . . . . . . . . . Heat Transferred 1075 | . 50 625 400 . . . . . . . . . . . . . . . . . . . . . . . . . . . . Parts Sabotaged 3 | . . . . . . . . . . . . . . . . . . 3 . . . . . . . . . . . . . Parts Stolen . | . . . . . . . . . . . . . . . . . . . . . . . . . . . . . . . . Parts Stripped . | . . . . . . . . . . . . . . . . . . . . . . . . . . . . . . . . Power Chain Reactions . | . . . . . . . . . . . . . . . . . . . . . . . . . . . . . . . . Alert | -11 -10 -9 -8 -7 -7 -7 -7 -7 -6 -6 -6 -6 -6 -5 -5 -5 -5 -5 -4 -4 -4 -4 -4 -4 -3 -3 -3 -2 -1 -1 -1 ------- Run | Yrd Mat Mat Mat Fac Low Low Zio Dee Pro Fac Low Low Dat Pro Fac Upp Upp War Pro Fac Ext Cet Arc Hub Res Qua Sec Res Acc Com Ac0 Maximum Alert Level 5 | . . 1 2 3 . . . . . 3 . . . . 4 . . . . 2 4 3 2 1 2 2 2 2 4 5 . Low Security (%) 8 | 100 100 86 27 1 . . . . . . . . . . 13 . . . . . . . . 83 43 . . . . . . Level 1 13 | . . 13 20 36 . . . . . 13 . . . . 17 . . . . . 13 . 11 16 49 45 24 30 14 . . Level 2 31 | . . . 51 38 . . . . . 80 . . . . 29 . . . . 100 50 . 88 . 6 54 75 69 26 . . Level 3 17 | . . . . 23 . . . . . 6 . . . . 29 . . . . . 18 100 . . . . . . 42 12 . Level 4 5 | . . . . . . . . . . . . . . . 9 . . . . . 16 . . . . . . . 17 7 . Level 5 23 | . . . . . . . . . . . . . . . . . . . . . . . . . . . . . . 80 . High Security . | . . . . . . . . . . . . . . . . . . . . . . . . . . . . . . . . Max Security . | . . . . . . . . . . . . . . . . . . . . . . . . . . . . . . . . Peak Influence 1693 | . 60 267 513 767 . . . . . 810 . . . . 1138 . . . . 548 1580 1028 476 265 416 475 644 581 1164 1693 . Initial 864 | . . 16 108 214 . . . . . 264 . . . . 59 . . . . 434 263 864 331 149 76 234 245 358 339 739 . Average 582 | . 8 111 345 495 . . . . . 563 . . . . 602 . . . . 477 735 929 438 120 245 384 507 475 735 1100 . Influence Increases 15001 | . 70 381 545 895 50 180 15 . 625 998 200 140 20 205 1515 260 155 370 1065 194 1773 179 175 402 470 352 639 318 1127 1600 83 Destroy 0b10 Robot/C 8840 | . 40 240 320 540 40 140 . . 380 660 160 120 20 160 1020 240 140 300 780 120 880 80 80 60 300 240 340 180 720 540 . Destroy 0b10 Robot/NC 465 | . . . 10 40 10 . 15 . . 40 . . . . 70 . 5 10 15 5 25 5 . 5 25 35 15 . 25 110 . Destroy Leader 1388 | . . 60 92 124 . 10 . . 20 152 40 20 . 30 186 20 10 . 60 30 54 . . 10 62 16 62 60 154 116 . Allied During Kill 1022 | . . . . . . . . . . . . . . . . . . . . . 742 85 80 74 . . . . . 41 . Successful Hack 226 | . . 6 . 66 . . . . . 39 . . . . 34 . . . . 14 6 5 . 6 16 . 3 . . 31 . Select Force Hacks 150 | . . . . . . . . . . . . . . . . . . . . . . . . 150 . . . . . . . Disable Machine 285 | . . . . 15 . . . . . . . . . . . . . . . . 30 . 15 . 15 30 75 . 45 15 45 Destroy Structure 360 | . . . 3 20 . . . . . 17 . . . . 100 . . . . 10 36 4 . 22 22 16 24 3 18 42 23 Partial Spotted 285 | . . 15 45 30 . . . . . 30 . . . . . . . . . 15 . . . . . 15 . . 45 75 15 Lose Combat Pursuer 1980 | . 30 60 75 60 . 30 . . 225 60 . . . 15 105 . . 60 210 . . . . 75 30 . 120 75 120 630 . Influence Decreases 14918 | . 30 164 329 609 352 178 474 . 204 615 449 176 539 110 500 471 241 935 622 347 767 894 578 681 201 332 437 390 537 851 1905 Entered New Map 9281 | . . 24 149 259 282 88 459 . . 157 299 106 519 . 36 411 171 813 248 257 275 680 498 277 71 182 191 280 227 417 1905 Time Decay 4985 | . 30 140 170 350 70 90 15 . 204 458 150 70 20 110 464 60 70 122 374 90 392 214 60 22 130 150 246 110 310 294 . Lost Part 10 | . . . 10 . . . . . . . . . . . . . . . . . . . . . . . . . . . . Lost Ally 642 | . . . . . . . . . . . . . . . . . . . . . 100 . 20 382 . . . . . 140 . Squads Dispatched 79 | . 2 1 5 8 . . . . . 10 . . . . 13 . . . 1 1 1 . . 8 2 2 3 2 9 11 . Investigation 26 | . 1 . . 4 . . . . . 6 . . . . 5 . . . . 1 . . . 6 . . . . 2 1 . Extermination 14 | . . . . 1 . . . . . 3 . . . . 3 . . . . . . . . . 1 1 1 . 1 3 . Reinforcement 18 | . 1 1 2 3 . . . . . 1 . . . . . . . . . . . . . . . 1 2 2 1 4 . Assault 10 | . . . . . . . . . . . . . . . 1 . . . 1 . 1 . . 2 . . . . 2 3 . Garrison 5 | . . . 3 . . . . . . . . . . . 2 . . . . . . . . . . . . . . . . Intercept 6 | . . . . . . . . . . . . . . . 2 . . . . . . . . . 1 . . . 3 . . Searches Triggered . | . . . . . . . . . . . . . . . . . . . . . . . . . . . . . . . . Construction Impeded . | . . . . . . . . . . . . . . . . . . . . . . . . . . . . . . . . Haulers Reinforced . | . . . . . . . . . . . . . . . . . . . . . . . . . . . . . . . . Active Scanning Responses . | . . . . . . . . . . . . . . . . . . . . . . . . . . . . . . . . Cargo Convoy Interrupts 1 | . . . . . . . . . . . . . . . 1 . . . . . . . . . . . . . . . . Stealth | -11 -10 -9 -8 -7 -7 -7 -7 -7 -6 -6 -6 -6 -6 -5 -5 -5 -5 -5 -4 -4 -4 -4 -4 -4 -3 -3 -3 -2 -1 -1 -1 --------- Run | Yrd Mat Mat Mat Fac Low Low Zio Dee Pro Fac Low Low Dat Pro Fac Upp Upp War Pro Fac Ext Cet Arc Hub Res Qua Sec Res Acc Com Ac0 Distress Signals 44 | . . 1 2 1 . . . . . . . . . . 3 . . 1 . . 4 1 . . 1 . 4 1 . 25 . Communications Jammed . | . . . . . . . . . . . . . . . . . . . . . . . . . . . . . . . . Distress Signals . | . . . . . . . . . . . . . . . . . . . . . . . . . . . . . . . . Times Spotted 721 | . 6 20 26 35 2 10 26 15 30 39 8 6 4 9 73 12 6 42 44 8 44 5 4 13 17 15 29 21 48 84 20 Peak Tracking Total 27 | . 3 6 9 4 1 5 21 5 7 9 3 3 2 4 6 7 4 9 9 4 7 5 3 7 7 3 8 10 8 27 5 Tactical Retreats 52 | . 1 2 2 1 . 2 2 . 4 3 . . . 1 6 . . 2 6 . . . . 1 1 . 3 3 3 9 . Traps | -11 -10 -9 -8 -7 -7 -7 -7 -7 -6 -6 -6 -6 -6 -5 -5 -5 -5 -5 -4 -4 -4 -4 -4 -4 -3 -3 -3 -2 -1 -1 -1 ------- Run | Yrd Mat Mat Mat Fac Low Low Zio Dee Pro Fac Low Low Dat Pro Fac Upp Upp War Pro Fac Ext Cet Arc Hub Res Qua Sec Res Acc Com Ac0 Traps Triggered 12 | . 1 . . 2 . . . . . . . . . . 2 . . . . 2 2 . . . . . . . 1 2 . Indirectly . | . . . . . . . . . . . . . . . . . . . . . . . . . . . . . . . . Trap Hack Attempts . | . . . . . . . . . . . . . . . . . . . . . . . . . . . . . . . . Triggered . | . . . . . . . . . . . . . . . . . . . . . . . . . . . . . . . . Disarmed 5 | . . . . . . . . . . . . . . . . . . . . . 5 . . . . . . . . . . Reprogrammed . | . . . . . . . . . . . . . . . . . . . . . . . . . . . . . . . . Reused . | . . . . . . . . . . . . . . . . . . . . . . . . . . . . . . . . Traps Extracted . | . . . . . . . . . . . . . . . . . . . . . . . . . . . . . . . . Installed 16 | . . . . . . . . . . . . . . . . . 7 . 9 . . . . . . . . . . . . Triggered . | . . . . . . . . . . . . . . . . . . . . . . . . . . . . . . . . Machines | -11 -10 -9 -8 -7 -7 -7 -7 -7 -6 -6 -6 -6 -6 -5 -5 -5 -5 -5 -4 -4 -4 -4 -4 -4 -3 -3 -3 -2 -1 -1 -1 ---------- Run | Yrd Mat Mat Mat Fac Low Low Zio Dee Pro Fac Low Low Dat Pro Fac Upp Upp War Pro Fac Ext Cet Arc Hub Res Qua Sec Res Acc Com Ac0 Machines Disabled 22 | . . . . 1 1 . 1 . . . . . . . . . . . . . 3 . 1 . 1 2 5 . 3 1 3 Max in Single Turn 1 | . . . . 1 1 . 1 . . . . . . . . . . . . . . . . . 1 1 1 . 1 1 1 Garrison Access 4 | . . . . . . . . . . . . . . . 1 . . . . . . . . 1 . . 1 . 1 . . Network Hub 4 | . . . . . . . . . . . . . . . . . . . . . . . . 4 . . . . . . . Energy Cycler 1 | . . . . . . . . . . . . . . . . . . . . . 1 . . . . . . . . . . Machines Repaired . | . . . . . . . . . . . . . . . . . . . . . . . . . . . . . . . . Machines Dismantled . | . . . . . . . . . . . . . . . . . . . . . . . . . . . . . . . . Machines Sabotaged 3 | . . . . . . . . . . . . . . . . . . . . . . . . 3 . . . . . . . Overloaded Fab Kills . | . . . . . . . . . . . . . . . . . . . . . . . . . . . . . . . . Hacking | -11 -10 -9 -8 -7 -7 -7 -7 -7 -6 -6 -6 -6 -6 -5 -5 -5 -5 -5 -4 -4 -4 -4 -4 -4 -3 -3 -3 -2 -1 -1 -1 --------- Run | Yrd Mat Mat Mat Fac Low Low Zio Dee Pro Fac Low Low Dat Pro Fac Upp Upp War Pro Fac Ext Cet Arc Hub Res Qua Sec Res Acc Com Ac0 Machines Accessed 59 | . . 1 . 8 . . . . . 9 . . 4 . 8 . . 1 . 3 4 1 . 6 1 1 4 . 3 5 . Terminals 34 | . . . . 5 . . . . . 3 . . . . 1 . . . . 2 4 1 . 6 1 1 3 . 2 5 . Fabricators 12 | . . . . 3 . . . . . 3 . . . . 5 . . . . 1 . . . . . . . . . . . Repair Stations 4 | . . 1 . . . . . . . 3 . . . . . . . . . . . . . . . . . . . . . Recycling Units . | . . . . . . . . . . . . . . . . . . . . . . . . . . . . . . . . Scanalyzers 1 | . . . . . . . . . . . . . . . 1 . . . . . . . . . . . . . . . . Garrison Access 3 | . . . . . . . . . . . . . . . 1 . . . . . . . . . . . 1 . 1 . . Total Hacks 137 | . . 1 . 16 . . . . . 13 . . 31 . 23 . . 1 . 5 10 1 . 10 2 1 8 . 6 9 . Successful 99 | . . 1 . 12 . . . . . 10 . . 31 . 16 . . 1 . 3 5 1 . 7 1 1 4 . 1 5 . Failed 38 | . . . . 4 . . . . . 3 . . . . 7 . . . . 2 5 . . 3 1 . 4 . 5 4 . Catastrophic 4 | . . . . . . . . . . 1 . . . . . . . . . 1 . . . . 1 . . . 1 . . Database Lockouts . | . . . . . . . . . . . . . . . . . . . . . . . . . . . . . . . . Manual 43 | . . . . 6 . . 4 . . 5 . . . . 5 . . 1 . 3 4 . . 10 2 . . . 1 2 . Terminals 56 | . . . . 8 . . . . . 3 . . . . 2 . . . . 3 10 1 . 10 2 1 3 . 4 9 . Fabricators 33 | . . . . 8 . . . . . 7 . . . . 16 . . . . 2 . . . . . . . . . . . Repair Stations 4 | . . 1 . . . . . . . 3 . . . . . . . . . . . . . . . . . . . . . Recycling Units . | . . . . . . . . . . . . . . . . . . . . . . . . . . . . . . . . Scanalyzers 2 | . . . . . . . . . . . . . . . 2 . . . . . . . . . . . . . . . . Garrison Access 10 | . . . . . . . . . . . . . . . 3 . . . . . . . . . . . 5 . 2 . . Terminal Hacks 58 | . . . . 7 . . . . . 1 . . 31 . 2 . . 1 . 1 5 1 . 1 1 1 3 . . 3 . Record 12 | . . . . . . . . . . . . . 11 . . . . . . . . . . . . 1 . . . . . Part Schematic 17 | . . . . 4 . . . . . . . . 12 . . . . . . 1 . . . . . . . . . . . Robot Schematic 5 | . . . . . . . . . . . . . 5 . . . . . . . . . . . . . . . . . . Prototype ID Bank 3 | . . . . . . . . . . . . . 3 . . . . . . . . . . . . . . . . . . Open Door 9 | . . . . . . . . . . . . . . . . . . 1 . . 3 1 . . . . 3 . . 1 . Level Access Points 1 | . . . . . . . . . . . . . . . . . . . . . . . . 1 . . . . . . . Branch Access Points 5 | . . . . 1 . . . . . 1 . . . . 2 . . . . . . . . . 1 . . . . . . Machine Index 1 | . . . . 1 . . . . . . . . . . . . . . . . . . . . . . . . . . . Disarm Traps 2 | . . . . . . . . . . . . . . . . . . . . . 2 . . . . . . . . . . Zone Layout 1 | . . . . 1 . . . . . . . . . . . . . . . . . . . . . . . . . . . Disengage Seal 2 | . . . . . . . . . . . . . . . . . . . . . . . . . . . . . . 2 . Fabricator Hacks 21 | . . . . 5 . . . . . 6 . . . . 8 . . . . 2 . . . . . . . . . . . Load Schematic 12 | . . . . 3 . . . . . 3 . . . . 5 . . . . 1 . . . . . . . . . . . Build 9 | . . . . 2 . . . . . 3 . . . . 3 . . . . 1 . . . . . . . . . . . Repair Station Hacks 1 | . . 1 . . . . . . . . . . . . . . . . . . . . . . . . . . . . . Refit 1 | . . 1 . . . . . . . . . . . . . . . . . . . . . . . . . . . . . Recycling Unit Hacks . | . . . . . . . . . . . . . . . . . . . . . . . . . . . . . . . . Scanalyzer 2 | . . . . . . . . . . . . . . . 2 . . . . . . . . . . . . . . . . Insert Component 1 | . . . . . . . . . . . . . . . 1 . . . . . . . . . . . . . . . . Analyze 1 | . . . . . . . . . . . . . . . 1 . . . . . . . . . . . . . . . . Garrison Access Hacks 3 | . . . . . . . . . . . . . . . 1 . . . . . . . . . . . 1 . 1 . . Seal Access 3 | . . . . . . . . . . . . . . . 1 . . . . . . . . . . . 1 . 1 . . Unauthorized Hacks 14 | . . . . . . . . . . 3 . . . . 3 . . . . . . . . 6 . . . . . 2 . Terminals 8 | . . . . . . . . . . . . . . . . . . . . . . . . 6 . . . . . 2 . Botnet 2 | . . . . . . . . . . . . . . . . . . . . . . . . . . . . . . 2 . Sabotage 6 | . . . . . . . . . . . . . . . . . . . . . . . . 6 . . . . . . . Fabricators 3 | . . . . . . . . . . . . . . . 3 . . . . . . . . . . . . . . . . Prioritize 3 | . . . . . . . . . . . . . . . 3 . . . . . . . . . . . . . . . . Repair Stations 3 | . . . . . . . . . . 3 . . . . . . . . . . . . . . . . . . . . . Patch 3 | . . . . . . . . . . 3 . . . . . . . . . . . . . . . . . . . . . Recycling Units . | . . . . . . . . . . . . . . . . . . . . . . . . . . . . . . . . Scanalyzers . | . . . . . . . . . . . . . . . . . . . . . . . . . . . . . . . . Garrison Access . | . . . . . . . . . . . . . . . . . . . . . . . . . . . . . . . . Data Cores Recovered 2 | . . . . . . . . . . . . . . . 1 . . . . 1 . . . . . . . . . . . Used . | . . . . . . . . . . . . . . . . . . . . . . . . . . . . . . . . Hacking Detections 31 | . . . . 6 . . . . . 5 . . . . 8 . . . . 2 1 1 . 2 1 . 1 . 2 2 . Full Trace Events 13 | . . . . 3 . . . . . 3 . . . . 5 . . . . 1 . . . . . . . . 1 . . Feedback Events . | . . . . . . . . . . . . . . . . . . . . . . . . . . . . . . . . Feedback Blocked . | . . . . . . . . . . . . . . . . . . . . . . . . . . . . . . . . Robot Schematics Acquired 10 | . . . . . . . . . . . . . 5 . . . . . . . . . . . . 3 2 . . . . Robots Built . | . . . . . . . . . . . . . . . . . . . . . . . . . . . . . . . . Authchips . | . . . . . . . . . . . . . . . . . . . . . . . . . . . . . . . . Time . | . . . . . . . . . . . . . . . . . . . . . . . . . . . . . . . . Total Robot Build Rating . | . . . . . . . . . . . . . . . . . . . . . . . . . . . . . . . . Part Schematics Acquired 34 | . . . . 4 . . . . . . . . 12 . 1 . . . . 1 . . . . . 8 8 . . . . Parts Built 16 | . . . . 4 . . . . . 6 . . . . 4 . . . . 2 . . . . . . . . . . . Authchips . | . . . . . . . . . . . . . . . . . . . . . . . . . . . . . . . . Time 404 | . . . . 73 . . . . . 131 . . . . 142 . . . . 58 . . . . . . . . . . . Total Part Build Rating 82 | . . . . 18 . . . . . 32 . . . . 18 . . . . 14 . . . . . . . . . . . Parts Repaired . | . . . . . . . . . . . . . . . . . . . . . . . . . . . . . . . . Time . | . . . . . . . . . . . . . . . . . . . . . . . . . . . . . . . . Parts Recycled . | . . . . . . . . . . . . . . . . . . . . . . . . . . . . . . . . Recycled Matter . | . . . . . . . . . . . . . . . . . . . . . . . . . . . . . . . . Retrieved Matter . | . . . . . . . . . . . . . . . . . . . . . . . . . . . . . . . . Retrieved Components . | . . . . . . . . . . . . . . . . . . . . . . . . . . . . . . . . Parts Scanalyzed 1 | . . . . . . . . . . . . . . . 1 . . . . . . . . . . . . . . . . Part Schematics Acquired 1 | . . . . . . . . . . . . . . . 1 . . . . . . . . . . . . . . . . Parts Damaged . | . . . . . . . . . . . . . . . . . . . . . . . . . . . . . . . . Bothacking | -11 -10 -9 -8 -7 -7 -7 -7 -7 -6 -6 -6 -6 -6 -5 -5 -5 -5 -5 -4 -4 -4 -4 -4 -4 -3 -3 -3 -2 -1 -1 -1 ------------ Run | Yrd Mat Mat Mat Fac Low Low Zio Dee Pro Fac Low Low Dat Pro Fac Upp Upp War Pro Fac Ext Cet Arc Hub Res Qua Sec Res Acc Com Ac0 Used RIF Installer . | . . . . . . . . . . . . . . . . . . . . . . . . . . . . . . . . Robots Hacked 4 | . . . . . . . . . . . . . . . . . . . . . 1 . . . . . 1 . . . 2 Non-combat . | . . . . . . . . . . . . . . . . . . . . . . . . . . . . . . . . Combat 2 | . . . . . . . . . . . . . . . . . . . . . 1 . . . . . 1 . . . . Robot Hacks Applied 2 | . . . . . . . . . . . . . . . . . . . . . 1 . . . . . 1 . . . . parse_system 2 | . . . . . . . . . . . . . . . . . . . . . 1 . . . . . 1 . . . . Manual 2 | . . . . . . . . . . . . . . . . . . . . . . . . . . . . . . . 2 Relay Couplers Released 1 | . . . . . . . . . . . . . . . . . . . . . . . . 1 . . . . . . . Machine Destruction 1 | . . . . . . . . . . . . . . . . . . . . . . . . 1 . . . . . . . Fabnet Peak Effective % . | . . . . . . . . . . . . . . . . . . . . . . . . . . . . . . . . Robots Rewired 27 | . . . . . . . . . . . . . . . . . . . . . 27 . . . . . . . . . . Allies Hacked . | . . . . . . . . . . . . . . . . . . . . . . . . . . . . . . . . Hacks Repelled . | . . . . . . . . . . . . . . . . . . . . . . . . . . . . . . . . Allies | -11 -10 -9 -8 -7 -7 -7 -7 -7 -6 -6 -6 -6 -6 -5 -5 -5 -5 -5 -4 -4 -4 -4 -4 -4 -3 -3 -3 -2 -1 -1 -1 -------- Run | Yrd Mat Mat Mat Fac Low Low Zio Dee Pro Fac Low Low Dat Pro Fac Upp Upp War Pro Fac Ext Cet Arc Hub Res Qua Sec Res Acc Com Ac0 Total Allies 60 | . . . . . . . . . . . . . . . . . . . . . 30 . . . . . . . . 30 . Largest Group 29 | . . . . . . . . . . . . . . . . . . . . . 29 24 23 21 . . . . . 22 . Highest-Rated Group 1290 | . . . . . . . . . . . . . . . . . . . . . 1290 1063 1016 806 . . . . . 311 . Highest-Rated Ally 159 | . . . . . . . . . . . . . . . . . . . . . 159 159 159 51 . . . . . 15 . Total Orders . | . . . . . . . . . . . . . . . . . . . . . . . . . . . . . . . . Ally Attacks 214 | . . . . . . . . . . . . . . . . . . . . . 106 10 16 37 . . . . . 45 . Total Damage 6743 | . . . . . . . . . . . . . . . . . . . . . 3778 268 452 1091 . . . . . 1154 . Kills 19 | . . . . . . . . . . . . . . . . . . . . . 11 . 1 4 . . . . . 3 . Allies Corrupted 10 | . . . . . . . . . . . . . . . . . . . . . . . . 9 . . . . . 1 . Allies Melted . | . . . . . . . . . . . . . . . . . . . . . . . . . . . . . . . . Intel | -11 -10 -9 -8 -7 -7 -7 -7 -7 -6 -6 -6 -6 -6 -5 -5 -5 -5 -5 -4 -4 -4 -4 -4 -4 -3 -3 -3 -2 -1 -1 -1 ------- Run | Yrd Mat Mat Mat Fac Low Low Zio Dee Pro Fac Low Low Dat Pro Fac Upp Upp War Pro Fac Ext Cet Arc Hub Res Qua Sec Res Acc Com Ac0 Active Infowar (turns) . | . . . . . . . . . . . . . . . . . . . . . . . . . . . . . . . . Robot Analysis Total 151 | . . . . . . . . . . . . . 151 . . . . . . . . . . . . . . . . . . Derelict Logs Recovered 10 | . . . . . 1 1 1 . 1 . . . . 2 . 1 2 . 1 . . . . . . . . . . . . Drone Launches . | . . . . . . . . . . . . . . . . . . . . . . . . . . . . . . . . Drone Recoveries . | . . . . . . . . . . . . . . . . . . . . . . . . . . . . . . . . Exploration | -11 -10 -9 -8 -7 -7 -7 -7 -7 -6 -6 -6 -6 -6 -5 -5 -5 -5 -5 -4 -4 -4 -4 -4 -4 -3 -3 -3 -2 -1 -1 -1 ------------- Run | Yrd Mat Mat Mat Fac Low Low Zio Dee Pro Fac Low Low Dat Pro Fac Upp Upp War Pro Fac Ext Cet Arc Hub Res Qua Sec Res Acc Com Ac0 Turns Passed 16274 | 12 274 283 345 781 151 185 1004 586 452 1146 312 154 289 297 1165 124 144 467 877 198 927 442 129 60 275 315 527 223 684 3215 231 Spaces Moved 19822 | 21 294 334 382 954 326 394 1294 927 491 1613 478 304 331 542 1315 285 324 875 1078 274 461 121 77 131 307 571 832 471 934 2792 289 Core 263 | 21 232 . . . . . . . . . . . . . 10 . . . . . . . . . . . . . . . . Treads . | . . . . . . . . . . . . . . . . . . . . . . . . . . . . . . . . Legs . | . . . . . . . . . . . . . . . . . . . . . . . . . . . . . . . . Wheels . | . . . . . . . . . . . . . . . . . . . . . . . . . . . . . . . . Hover 66 | . . . . . . . . 66 . . . . . . . . . . . . . . . . . . . . . . . Flight 19493 | . 62 334 382 954 326 394 1294 861 491 1613 478 304 331 542 1305 285 324 875 1078 274 461 121 77 131 307 571 832 471 934 2792 289 Fastest Speed 32 | 50 37 37 37 32 37 37 37 37 34 34 37 37 37 37 34 34 34 34 34 34 34 34 34 34 34 34 34 34 34 34 34 Average Speed 35 | 50 47 37 37 34 37 37 37 38 36 34 37 37 37 37 40 34 34 34 34 34 38 34 34 34 34 34 34 34 34 34 34 Slowest Speed 120 | 50 50 37 40 114 37 37 37 60 37 37 37 37 37 37 120 34 34 120 34 34 120 34 34 34 34 34 34 34 34 95 34 Overloaded Moves . | . . . . . . . . . . . . . . . . . . . . . . . . . . . . . . . . Propulsion Burnouts . | . . . . . . . . . . . . . . . . . . . . . . . . . . . . . . . . Robots Hopped 18 | . 2 2 1 1 . . . . . . . . . . . . . . . . 3 . . . . 4 . . . 5 . Potential Cave-ins 5 | . . . . . . . . . . . . . . . 2 . . . . . . . . . . . . . . . 3 Cave-ins Triggered 3 | . . . . . . . . . 1 . . . . . 1 . . . . . . . . . . . . . . . 1 Teleports 1 | . . . . . . . . . . . . . . . . . . . . . . . . . . . . . . 1 . Exploration Rate (%) 49 | 3 40 27 38 28 66 62 84 79 63 37 62 51 99 69 38 47 41 75 92 7 74 61 76 25 14 59 47 18 21 80 16 Regions Visited 31 Branch Regions 21 Pre-discovered Areas 33 | . . . . . . . . . . . . . 32 1 . . . . . . . . . . . . . . . . . Known Exits Taken 7 | . . . . 1 . . . . . 1 . . . 1 1 . . . . 1 . . . 1 1 . . . . . . Unknown Exits Taken 24 | 1 1 1 1 . 1 1 1 1 1 . 1 1 1 . . 1 1 1 1 . 1 1 1 . . 1 1 1 1 1 . Scrap Searched 10 | . . . . . . . 2 . 2 . . 1 . . . 2 1 . 2 . . . . . . . . . . . . Spaces Dug 204 | . . . . 21 . . . 3 4 16 5 3 . 6 56 . 3 2 21 6 . . . 8 11 8 12 1 6 9 3 Terrain Destroyed 205 | . . . . 21 . . . 4 4 16 5 3 . 6 56 . 3 2 21 6 . . . 8 11 8 12 1 6 9 3 Melee 202 | . . . . 21 . . . 1 4 16 5 3 . 6 56 . 3 2 21 6 . . . 8 11 8 12 1 6 9 3 Projectile 3 | . . . . . . . . 3 . . . . . . . . . . . . . . . . . . . . . . . AOE . | . . . . . . . . . . . . . . . . . . . . . . . . . . . . . . . . Terrain Rammed . | . . . . . . . . . . . . . . . . . . . . . . . . . . . . . . . . Walls Destroyed . | . . . . . . . . . . . . . . . . . . . . . . . . . . . . . . . . Machines Disabled . | . . . . . . . . . . . . . . . . . . . . . . . . . . . . . . . . Actions | -11 -10 -9 -8 -7 -7 -7 -7 -7 -6 -6 -6 -6 -6 -5 -5 -5 -5 -5 -4 -4 -4 -4 -4 -4 -3 -3 -3 -2 -1 -1 -1 --------- Run | Yrd Mat Mat Mat Fac Low Low Zio Dee Pro Fac Low Low Dat Pro Fac Upp Upp War Pro Fac Ext Cet Arc Hub Res Qua Sec Res Acc Com Ac0 Total 27778 | 21 409 427 504 1305 348 425 1808 1125 738 2132 599 332 460 617 1851 303 349 1020 1520 361 1153 515 176 140 439 648 1027 520 1210 4914 382 Wait 5161 | . 102 49 20 177 4 3 492 81 184 338 92 3 52 18 250 3 . 58 271 42 460 378 88 . 19 6 62 12 95 1797 5 Move 19755 | 20 289 329 379 951 325 393 1293 926 490 1612 477 303 330 541 1314 284 323 874 1077 273 454 120 76 130 306 562 831 470 933 2782 288 Hop 17 | . 2 2 1 1 . . . . . . . . . . . . . . . . 3 . . . . 4 . . . 4 . Pick Up 86 | . . . 2 2 3 2 1 5 . 4 1 . 2 5 7 . 1 5 4 3 3 . 1 . 3 4 10 2 5 9 2 Fast Attach 65 | 1 4 2 7 3 . . . 10 2 3 . . 2 . 3 . . 4 . 5 6 . . . . 4 9 . . . . Attach 19 | . . . . . . . . 3 . 3 . . 1 . 1 . . . . . . . . . 1 2 4 . . 1 3 Detach 12 | . . . . . . . . 2 . 1 . . . . 1 . . . . . . . . . . 2 3 . . . 3 Swap 35 | . . 3 6 6 . . 2 3 . 3 . . . . 2 . . 2 . . 2 . . 1 . 1 2 . . 1 1 Drop 129 | . . 3 11 10 2 1 3 15 2 5 . . 3 3 11 . 1 8 4 1 2 . 1 . 5 6 12 2 4 12 2 Fire 105 | . 8 35 38 . . . . 8 . . . . . . . . . . . . 5 . . . . . 2 . . . 9 Melee 1429 | . . . . 91 14 12 17 42 44 112 21 19 62 36 182 12 14 36 110 25 73 8 5 9 63 48 55 15 103 159 42 Ram . | . . . . . . . . . . . . . . . . . . . . . . . . . . . . . . . . Kick . | . . . . . . . . . . . . . . . . . . . . . . . . . . . . . . . . Crush . | . . . . . . . . . . . . . . . . . . . . . . . . . . . . . . . . Escape Stasis 44 | . . . . 18 . . . . . . . . . . 18 . . . . . . . . . . . . . . 7 1 Rewire 103 | . . . . . . . . . . . . . . . . . . . . . 103 . . . . . . . . . . Trap 16 | . . . . . . . . . . . . . . . . . 7 . 9 . . . . . . . . . . . . Miscellaneous 802 | . 4 4 40 46 . 14 . 30 16 51 8 7 8 14 62 4 3 33 45 12 42 9 5 . 42 9 37 19 70 142 26 Route ------- -11/Scrapyard -10/Materials (discovered 3 exits: *Mat / [*Min] / [*Sub]) -9/Materials (discovered 2 exits: [*Mat] / [*Min]) -8/Materials -7/Factory (discovered 4 exits: *Fac / *Sto / *Low x2) -7/Lower Caves -7/Lower Caves -7/Zion -7/Deep Caves -6/Proximity Caves -6/Factory (discovered 4 exits: *Fac x2 / *Low x2) -6/Lower Caves -6/Lower Caves -6/Data Miner -5/Proximity Caves -5/Factory (discovered 5 exits: *Fac x3 / *Upp x2) -5/Upper Caves -5/Upper Caves -5/Warlord -4/Proximity Caves -4/Factory (discovered 6 exits: *Res x3 / Upp / *Ext x2) -4/Extension (discovered 2 exits: *Res / *Cet) -4/Cetus -4/Archives (discovered 2 exits: *Hub x2) -4/Hub_04(d) (discovered 4 exits: *Res x4) -3/Research (discovered 3 exits: Arm / *Qua x2) -3/Quarantine (discovered 2 exits: *Sec / [*Frg]) -3/Section 7 -2/Research -1/Access -1/Command (discovered 3 exits: [*Sur x2] / [*Ac0]) -1/Access_0 History --------- Turn | Location | Event 2 | -11/Scrapyard | Upgraded with Propulsion slot (x1) 2 | -11/Scrapyard | Upgraded with Weapon slot (x3) 6 | -11/Scrapyard | Discovered new exit (range 16) 13 | -11/Scrapyard | Entered Materials 14 | -10/Materials | Met a group of wandering Federalists 127 | -10/Materials | Discovered new exit (range 9) 178 | -10/Materials | Discovered new exit (range 16) 205 | -10/Materials | Discovered new exit (range 13) 287 | -10/Materials | Entered another Materials area 289 | -9/Materials | Reached level 2 295 | -9/Materials | Discovered new exit (range 13) 314 | -9/Materials | Build established: Mutant 505 | -9/Materials | Core integrity fell below 50% 536 | -9/Materials | Reached level 3 567 | -9/Materials | Discovered new exit (range 9) 570 | -9/Materials | Entered another Materials area 571 | -8/Materials | Core integrity fell below 50% 572 | -8/Materials | Reached level 4 585 | -8/Materials | Garrison activated, responded to threat 644 | -8/Materials | Core integrity fell below 20% 736 | -8/Materials | Reached level 5 756 | -8/Materials | Build established: Scavenger-Gunner 897 | -8/Materials | Discovered new exit (range 12) 915 | -8/Materials | Entered Factory 917 | -7/Factory | Reached level 6 1037 | -7/Factory | Reached level 7 1231 | -7/Factory | Fabricated Microactuators? 1234 | -7/Factory | Upgraded with Utility slot (x1) 1256 | -7/Factory | Build established: Hacker-Gladiator 1355 | -7/Factory | Discovered new exit (range 6) 1365 | -7/Factory | Reached level 8 1600 | -7/Factory | Fabricated Nuclear Pulse Thruster (x2) 1615 | -7/Factory | Identified exit to Storage 1615 | -7/Factory | Identified exit to Lower Caves 1634 | -7/Factory | Reached level 9 1651 | -7/Factory | Discovered new exit (range 15) 1696 | -7/Factory | Entered Lower Caves 1697 | -7/Lower Caves | Encountered a Warlord checkpoint 1732 | -7/Lower Caves | Entered a destroyed Warlord outpost 1735 | -7/Lower Caves | Murdered 3 allies 1762 | -7/Lower Caves | Learned location of 1 exit from Factory 1770 | -7/Lower Caves | Attacked by a delusional Derelict stockpiling parts 1842 | -7/Lower Caves | Discovered new exit (range 14) 1847 | -7/Lower Caves | Entered another Lower Caves area 1852 | -7/Lower Caves | Spotted B-75 Beast 1887 | -7/Lower Caves | Reached level 10 1911 | -7/Lower Caves | Encountered a Warlord checkpoint 2030 | -7/Lower Caves | Discovered new exit (range 7) 2032 | -7/Lower Caves | Entered Zion 2056 | -7/Zion | System corruption cleaned by Quarantine Array 2084 | -7/Zion | Learned Factory trap positions 2114 | -7/Zion | Met Imprinter 2968 | -7/Zion | Attacked by Zionites 2968 | -7/Zion | Destroyed Imprinter 2970 | -7/Zion | Extracted access codes from Imprinter's data core 3019 | -7/Zion | Opened final containment barrier to the Deep Caves 3025 | -7/Zion | Discovered new exit (range 3) 3025 | -7/Zion | Saw the warning signs outside the Deep Caves entrance 3036 | -7/Zion | Entered Deep Caves 3038 | -7/Deep Caves | Reached level 11 3180 | -7/Deep Caves | Z-Facility disabled 3305 | -7/Deep Caves | Core integrity fell below 50% 3620 | -7/Deep Caves | Discovered new exit (range 6) 3622 | -7/Deep Caves | Entered Proximity Caves 3624 | -6/Proximity Caves | Attracted the attention of an 0b10 checkpoint 3624 | -6/Proximity Caves | Reached level 12 3641 | -6/Proximity Caves | Crushed by falling debris 3801 | -6/Proximity Caves | Attracted the attention of an 0b10 outpost 3961 | -6/Proximity Caves | Reached level 13 3964 | -6/Proximity Caves | Core integrity fell below 20% 4008 | -6/Proximity Caves | Learned Factory security intel 4070 | -6/Proximity Caves | Spotted B-75 Beast 4072 | -6/Proximity Caves | Discovered new exit (range 6) 4074 | -6/Proximity Caves | Entered Factory 4075 | -6/Factory | Identified exit to Factory 4076 | -6/Factory | Loaded intel: 96 trap records 4076 | -6/Factory | Reached level 14 4175 | -6/Factory | Discovered new exit (range 12) 4176 | -6/Factory | Discovered new exit (range 9) 4201 | -6/Factory | Discovered exit to Factory (range 11) 4241 | -6/Factory | Core integrity fell below 50% 4251 | -6/Factory | Reached level 15 4292 | -6/Factory | Destroyed 7 combat bots 4390 | -6/Factory | Spotted B-75 Beast 4414 | -6/Factory | Destroyed B-75 Beast 4526 | -6/Factory | Fabricated Imp. Force Field? 4528 | -6/Factory | Upgraded with Utility slot (x1) 4532 | -6/Factory | Upgraded with Utility slot (x1) 4559 | -6/Factory | Reached level 16 4585 | -6/Factory | Upgraded with Utility slot (x1) 4852 | -6/Factory | Fabricated Nuclear Pulse Thruster (x2) 4988 | -6/Factory | Identified exit to Lower Caves 5104 | -6/Factory | Fabricated Core Analyzer? 5190 | -6/Factory | Reached level 17 5212 | -6/Factory | Upgraded with Utility slot (x1) 5220 | -6/Factory | Entered Lower Caves 5237 | -6/Lower Caves | Spotted B-75 Beast 5266 | -6/Lower Caves | Destroyed B-75 Beast 5291 | -6/Lower Caves | Encountered a Warlord checkpoint 5461 | -6/Lower Caves | Reached level 18 5529 | -6/Lower Caves | Discovered new exit (range 9) 5532 | -6/Lower Caves | Entered another Lower Caves area 5637 | -6/Lower Caves | Encountered a Warlord checkpoint 5681 | -6/Lower Caves | Discovered new exit (range 11) 5686 | -6/Lower Caves | Entered Data Miner 5686 | -6/Data Miner | Discovered new exit (range 6) 5694 | -6/Data Miner | Met Data Miner 5703 | -6/Data Miner | Learned location of Section 7 (-3) 5703 | -6/Data Miner | Acquired the access code to Warlord's prototype stash 5710 | -6/Data Miner | Received God Mode back door access code from Data Miner 5727 | -6/Data Miner | Destroyed Data Miner 5728 | -6/Data Miner | Reached level 19 5728 | -6/Data Miner | Interfaced with the Data Conduit 5729 | -6/Data Miner | Upgraded with Utility slot (x1) 5729 | -6/Data Miner | Found Prototype Hackware 5729 | -6/Data Miner | Identified Quantum Router 5732 | -6/Data Miner | Found Prototype Hackware 5732 | -6/Data Miner | Identified Ghost Barrier 5975 | -6/Data Miner | Entered Proximity Caves 6002 | -5/Proximity Caves | Learned Factory stockpile data 6015 | -5/Proximity Caves | Spotted B-75 Beast 6038 | -5/Proximity Caves | Destroyed B-75 Beast 6077 | -5/Proximity Caves | Reached level 20 6230 | -5/Proximity Caves | Attracted the attention of an 0b10 checkpoint 6266 | -5/Proximity Caves | Discovered exit to Factory (range 15) 6272 | -5/Proximity Caves | Entered Factory 6274 | -5/Factory | Loaded intel: 333 machine locations 6289 | -5/Factory | Discovered new exit (range 6) 6334 | -5/Factory | Discovered new exit (range 8) 6335 | -5/Factory | Identified exit to Upper Caves 6388 | -5/Factory | Discovered new exit (range 15) 6390 | -5/Factory | Reached level 21 6523 | -5/Factory | Crushed by falling debris 6604 | -5/Factory | Spotted B-75 Beast 6615 | -5/Factory | Destroyed B-75 Beast 6685 | -5/Factory | Fabricated Phasing Sabre? 6710 | -5/Factory | Destroyed 8 combat bots 6770 | -5/Factory | Reached level 22 6965 | -5/Factory | Fabricated Phasing Sabre? 7029 | -5/Factory | Intercept squad dispatched 7030 | -5/Factory | Spotted Tracker 7035 | -5/Factory | Garrison activated, responded to threat 7038 | -5/Factory | Destroyed Tracker 7055 | -5/Factory | Spotted Combat Programmer 7061 | -5/Factory | Destroyed Combat Programmer 7172 | -5/Factory | First assault squad dispatched 7273 | -5/Factory | Fabricated Actuator Array? 7277 | -5/Factory | Upgraded with Utility slot (x1) 7289 | -5/Factory | Upgraded with Propulsion slot (x1) 7355 | -5/Factory | Destroyed 7 combat bots 7377 | -5/Factory | Cargo convoy interrupted 7437 | -5/Factory | Entered Upper Caves 7445 | -5/Upper Caves | Reached level 23 7498 | -5/Upper Caves | Attracted the attention of an 0b10 checkpoint 7514 | -5/Upper Caves | Learned 12 Factory zone layouts 7521 | -5/Upper Caves | Destroyed 8 combat bots 7555 | -5/Upper Caves | Discovered new exit (range 16) 7561 | -5/Upper Caves | Entered another Upper Caves area 7587 | -5/Upper Caves | Build established: Machinist-Gladiator 7619 | -5/Upper Caves | Learned 8 Factory zone layouts 7680 | -5/Upper Caves | Learned location of 1 exit from Factory 7702 | -5/Upper Caves | Discovered new exit (range 10) 7705 | -5/Upper Caves | Entered Warlord 7718 | -5/Warlord | System corruption cleaned by Quarantine Array 7749 | -5/Warlord | Met Warlord 7774 | -5/Warlord | Warlord's base attacked by MAIN.C 7897 | -5/Warlord | Opened Warlord's prototype stash 7963 | -5/Warlord | Destroyed 7 combat bots 7999 | -5/Warlord | Warlord forces counterattacked 8105 | -5/Warlord | Spotted Striker 8121 | -5/Warlord | Spotted Striker 8127 | -5/Warlord | Core integrity fell below 50% 8153 | -5/Warlord | Discovered new exit (range 15) 8172 | -5/Warlord | Entered Proximity Caves 8174 | -4/Proximity Caves | Reached level 24 8182 | -4/Proximity Caves | Lost 4 allies 8209 | -4/Proximity Caves | Attracted the attention of an 0b10 checkpoint 8743 | -4/Proximity Caves | Reached level 25 8799 | -4/Proximity Caves | Attracted the attention of an 0b10 outpost 9005 | -4/Proximity Caves | Discovered new exit (range 8) 9049 | -4/Proximity Caves | Entered Factory 9050 | -4/Factory | Identified exit to Extension 9051 | -4/Factory | Identified exit to Research 9052 | -4/Factory | Identified exit to Upper Caves 9053 | -4/Factory | Loaded intel: 279 machine locations 9149 | -4/Factory | Fabricated Graphene Brace (x2) 9228 | -4/Factory | Discovered exit to Extension (range 16) 9247 | -4/Factory | Entered Extension 9248 | -4/Extension | Loaded intel: 25 machine locations 9249 | -4/Extension | Reached level 26 9270 | -4/Extension | Rescued a captive Derelict 9339 | -4/Extension | Rescued a captive Derelict 9339 | -4/Extension | Rescued a captive Derelict 9608 | -4/Extension | Rescued A7 9630 | -4/Extension | Spotted B-86 Titan 9639 | -4/Extension | Spotted B-86 Titan 9646 | -4/Extension | Destroyed B-86 Titan 9655 | -4/Extension | Destroyed B-86 Titan 9702 | -4/Extension | Build established: Commander-Gladiator 9997 | -4/Extension | First assault squad dispatched 9998 | -4/Extension | Reached level 27 10025 | -4/Extension | Energy Cycler disabled 10058 | -4/Extension | Discovered exit to Research (range 10) 10058 | -4/Extension | Discovered new exit (range 6) 10067 | -4/Extension | Lost 5 allies 10072 | -4/Extension | Destroyed 7 combat bots 10174 | -4/Extension | Entered Cetus 10174 | -4/Cetus | Accompanied by 24 allies (A7) 10175 | -4/Cetus | Loaded intel: 24 machine locations 10179 | -4/Cetus | Acquired a Cetus Manufacturing Module code from A7 10179 | -4/Cetus | Spotted Cetus Guard 10179 | -4/Cetus | Spotted Cetus Guard 10181 | -4/Cetus | Spotted Cetus Guard 10183 | -4/Cetus | Spotted Cetus Guard 10186 | -4/Cetus | Destroyed Cetus Guard 10190 | -4/Cetus | Destroyed Cetus Guard 10192 | -4/Cetus | Destroyed Cetus Guard 10199 | -4/Cetus | Destroyed Cetus Guard 10308 | -4/Cetus | Escorted A7 to Cetus Mainframe 10335 | -4/Cetus | Discovered new exit (range 15) 10616 | -4/Cetus | Entered Archives 10616 | -4/Archives | Accompanied by 23 allies (A7) 10617 | -4/Archives | Loaded intel: 8 machine locations 10621 | -4/Archives | Received a hacking code to weaken MAIN.C 10635 | -4/Archives | Discovered new exit (range 15) 10658 | -4/Archives | Discovered new exit (range 15) 10745 | -4/Archives | Entered Hub_04(d) 10745 | -4/Hub_04(d) | Accompanied by 21 allies 10746 | -4/Hub_04(d) | Loaded intel: 125 machine locations 10750 | -4/Hub_04(d) | Network Hub disabled 10750 | -4/Hub_04(d) | Network Hub disabled 10756 | -4/Hub_04(d) | Spotted Lightning 10787 | -4/Hub_04(d) | Network Hub disabled 10791 | -4/Hub_04(d) | Network Hub disabled 10805 | -4/Hub_04(d) | Lost 15 allies 10805 | -4/Hub_04(d) | Entered Research 10806 | -3/Research | Loaded intel: 108 machine locations 10807 | -3/Research | Reached level 28 10817 | -3/Research | Identified exit to Armory 10817 | -3/Research | Identified exit to Quarantine 10907 | -3/Research | Upgraded with Utility slot (x1) 10976 | -3/Research | Destroyed 7 combat bots 10998 | -3/Research | Reached level 29 11051 | -3/Research | Build established: Machinist-Gladiator 11078 | -3/Research | Intercept squad dispatched 11080 | -3/Research | Entered Quarantine 11081 | -3/Quarantine | Loaded intel: 58 machine locations 11132 | -3/Quarantine | Discovered new exit (range 13) 11150 | -3/Quarantine | Found Alien Slashing Weapon 11150 | -3/Quarantine | Identified Sigix Broadsword 11174 | -3/Quarantine | Found Alien Artifact 11175 | -3/Quarantine | Identified Subatomic Replicator 11175 | -3/Quarantine | Used Subatomic Replicator to replicate Sigix Broadsword 11298 | -3/Quarantine | Found Alien Artifact 11340 | -3/Quarantine | Identified Core Reset Matrix 11340 | -3/Quarantine | Used Core Reset Matrix 11344 | -3/Quarantine | Detected hypermatrix surge 11344 | -3/Quarantine | Sensed 1 artifact in vicinity 11350 | -3/Quarantine | Spotted Fortress 11393 | -3/Quarantine | Discovered new exit (range 5) 11393 | -3/Quarantine | Discovered new exit (range 6) 11395 | -3/Quarantine | Entered Section 7 11396 | -3/Section 7 | Detected hypermatrix surge 11396 | -3/Section 7 | Sensed 21 artifacts in vicinity 11397 | -3/Section 7 | Reached level 30 11475 | -3/Section 7 | Build established: Hacker-Gladiator 11553 | -3/Section 7 | Destroyed 7 combat bots 11589 | -3/Section 7 | Discovered new exit (range 11) 11594 | -3/Section 7 | Found Integrated Dissipator 11595 | -3/Section 7 | Installed Integrated Dissipator, increased core heat dissipation (+20) 11688 | -3/Section 7 | Found Integrated Dissipator 11688 | -3/Section 7 | Installed Integrated Dissipator, increased core heat dissipation (+20) 11699 | -3/Section 7 | Spotted Executioner 11699 | -3/Section 7 | Spotted Executioner 11718 | -3/Section 7 | Destroyed Executioner 11734 | -3/Section 7 | Found Exp. Core Analyzer 11737 | -3/Section 7 | Found Exp. Core Analyzer 11739 | -3/Section 7 | Upgraded with Utility slot (x1) 11749 | -3/Section 7 | Found Transdimensional Reconstructor 11778 | -3/Section 7 | Spotted B-99 Colossus 11806 | -3/Section 7 | Found LRC Insulator 11806 | -3/Section 7 | Installed LRC Insulator, 1 resistance modified: EM +25% 11811 | -3/Section 7 | Found LRC Inertial Stabilizer 11811 | -3/Section 7 | Installed LRC Inertial Stabilizer, increased mass support (+10) 11829 | -3/Section 7 | Found Integrated Dissipator 11829 | -3/Section 7 | Installed Integrated Dissipator, increased core heat dissipation (+20) 11865 | -3/Section 7 | Destroyed Executioner 11922 | -3/Section 7 | Entered Research 11922 | -2/Research | Warlord forces began assault on 0b10 11924 | -2/Research | Reached level 31 12014 | -2/Research | Spotted B-90 Cyclops 12032 | -2/Research | Research machine network offline 12107 | -2/Research | Build established: Alien-Gladiator 12140 | -2/Research | Discovered new exit (range 15) 12145 | -2/Research | Entered Access 12147 | -1/Access | Reached level 32 12361 | -1/Access | Reached level 33 12395 | -1/Access | First assault squad dispatched 12424 | -1/Access | Destroyed 9 combat bots 12556 | -1/Access | Intercept squad dispatched 12573 | -1/Access | Spotted Tracker 12574 | -1/Access | Spotted Tracker 12575 | -1/Access | Destroyed Tracker 12580 | -1/Access | Destroyed Tracker 12601 | -1/Access | Destroyed 7 combat bots 12604 | -1/Access | Spotted Combat Programmer 12615 | -1/Access | Destroyed Combat Programmer 12615 | -1/Access | Reached level 34 12628 | -1/Access | Spotted Combat Programmer 12636 | -1/Access | Destroyed Combat Programmer 12750 | -1/Access | Spotted B-99 Colossus 12750 | -1/Access | Spotted B-99 Colossus 12826 | -1/Access | Discovered new exit (range 5) 12829 | -1/Access | Entered Command 12831 | -1/Command | Reached level 35 12932 | -1/Command | Destroyed 8 combat bots 12981 | -1/Command | Disengaged cave seal 12981 | -1/Command | Welcomed Warlord to Command 12999 | -1/Command | Spotted B-99 Colossus 13014 | -1/Command | Destroyed B-99 Colossus 13054 | -1/Command | Lost 5 allies 13079 | -1/Command | First assault squad dispatched 13238 | -1/Command | Disengaged cave seal 13257 | -1/Command | Spotted M Guard 13258 | -1/Command | Spotted Combat Programmer 13270 | -1/Command | Spotted Combat Programmer 13270 | -1/Command | Combat Programmer assimilated allied YW-ADC(g) 13273 | -1/Command | Combat Programmer assimilated allied HE-9R3(s) 13277 | -1/Command | Destroyed Combat Programmer 13279 | -1/Command | Spotted M Guard 13279 | -1/Command | Destroyed Combat Programmer 13289 | -1/Command | P-80 Master assimilated allied 6G-NR2(s) 13343 | -1/Command | Lost 13 allies 13364 | -1/Command | Core integrity fell below 50% 13373 | -1/Command | Spotted B-99 Colossus 13456 | -1/Command | Met MAIN.C 13456 | -1/Command | Reached level 36 13467 | -1/Command | 0b10 Conduit disabled 13472 | -1/Command | Destroyed MAIN.C Shell 13474 | -1/Command | MAIN.C activated Command garrisons 13480 | -1/Command | Emitted hypermatrix ping 13485 | -1/Command | Assembled emerged from beneath the floor 13486 | -1/Command | Core integrity fell below 20% 13492 | -1/Command | Allies destroyed MAIN.C 13493 | -1/Command | Discovered new exit (range 30) 13493 | -1/Command | Discovered new exit (range 102) 13493 | -1/Command | Extracted map data and part IDs from MAIN.C's data core 13548 | -1/Command | Lost 8 allies 13587 | -1/Command | All MAIN.C guards destroyed 13587 | -1/Command | Reached level 37 15425 | -1/Command | Assembled emerged from beneath the floor 15599 | -1/Command | Assembled emerged from beneath the floor 15750 | -1/Command | Destroyed VF-JTO(B) 15767 | -1/Command | Attacked by Warlord forces 15792 | -1/Command | Murdered 5 allies 15814 | -1/Command | Assembled emerged from beneath the floor 16037 | -1/Command | Warped through subspace to slip node 16037 | -1/Command | Discovered new exit (range 5) 16044 | -1/Command | Entered Access_0 16045 | -1/Access_0 | Sensed 2 artifacts in vicinity 16045 | -1/Access_0 | Met Architect 16053 | -1/Access_0 | Hacked A8 with code downloaded from Data Conduit 16056 | -1/Access_0 | Destroyed A8 16064 | -1/Access_0 | Architect warped through subspace 16110 | -1/Access_0 | Architect warped through subspace 16146 | -1/Access_0 | Architect warped through subspace 16197 | -1/Access_0 | Architect warped through subspace 16215 | -1/Access_0 | Subspace Access Node disabled 16228 | -1/Access_0 | Architect warped through subspace 16243 | -1/Access_0 | Spotted Enhanced Programmer 16250 | -1/Access_0 | A6 warped into view 16261 | -1/Access_0 | Crushed by falling debris 16264 | -1/Access_0 | Subspace Access Node disabled 16274 | -1/Access_0 | Hacked A6 with code downloaded from Data Conduit 16275 | -1/Access_0 | Destroyed by A6 with Enhanced Force Lance Last Messages --------------- Crushed by falling debris. System corrupted: Substantial component data lost. Quantum Shear penetrates Wall. Penetrated by Quantum Shear. Penetrated by HV Slug. Acquired 2 matter. Subspace Access Node disabled. Quantum Shear penetrates Wall. Penetrated by HV Slug. HV Slug penetrates Subspace Access Node. Penetrated by HV Slug. Acquired 1 matter. Acquired 3 matter. Quantum Shear penetrates Wall. Jacked A6... Command string: \\J6FC No effect. Jacked A6... Command string: \\E7WP System: "Sequence initiated. Goodbye friend." Map ----- +----------------------------------------------------+ | ??????????????????????????????????????????????? ?? | | ??????????????????????????????????????????????? ?? | | ??????????????????????????????????????????????# #? | | ??????????????????????????????????????????????# #? | | ??????????????????????????????????????????????# #? | | ??????????????????????????????????????????????# #? | | ??????????????????????????????????????????????# #? | | ??????????????????????????????????????????????#=## | | ????????????????????????????????????????????###]#" | | ????????????????????????????????????????????# "!#] | | ????????????????????????????????????????????##!%!% | | ????????????????????????????????????????????# "%!% | | ????????????????????????????????????????????###=## | | ????????????????????????????????????? ???????#!#? | | ????????????????????????????????????? ???????#*#? | | ??????????????????????##????????????? #??????# #? | | ??????????????????????# ????????????? #??????# #? | | ??????????????????????# #???????????# #??????# #? | | ??????????????????????# ???????????# #?????## ## | | ?????????????????????## ???????????# #???### | | ?????????????????????# ##?????????# #??## | | ????????????????????## ?????????# #??# # | | ????????????????????? ?????????# ##?## # | | ?????????????????????? #?????????# "#??### | | ???????????????????????# #????????## "#????# | | ???????????????????????# @##"#######" ###??# | | ???????????????????????# p "" #??## # | | ???????????????????????# "" #???# # | | ???????????????????????# ########"" ###???# | | ???????????????????????# #????????## %##?????# | | ???????????????????????# #?????????# #??????### | | ???????????????????????# #???#?????#""#????????# | | ???????????????????????# #???# ????# #"####????# | | ???????????????????????# ######"#### # ###### | | ???????????????????????# """ #" #% | | ???????????????????????###???????#" "" ""%*= | | ????????????????????????????????### * !! | | ??????????????????????????????### % | | ??????????????????????? | | ?????????????????????? #" | | ???????????????????????########### ## #" | | ?????????????????????????????????# ?# #"## | | ?????????????????????????????????# ##### | | ?????????????????????????????????# "#???# | | ?????????????????????????????????## #"???# | | ??????????????????????????????????# ## #"??# | | ????????????????????????????????? #?## ? | | ???????????????????????????????? ##???# ? | | ?????????????????????????????? ?????# ###? | | ????????????????????????????? ??????####???? | +----------------------------------------------------+ Best States ------------- Heat Dissipation 97 Energy Generation 67 Energy Capacity 760 Matter Stores 300 Matter Capacity 300 Sight Range 16 Terrain Scan Density 10 Additional Mass Support 9 Armor Coverage 150 Resistance: KI 20 Resistance: TH 20 Resistance: EM 25 Melee Speed Boost 40 Evasion (%) 63 Core Analysis 12 Armor Integrity Analysis 40 Offensive Hacking 35 Defensive Hacking 25 Item Schematics ----------------- Prc. Phase Gun | -3/Section 7 | Archive Com. Mass Driver | -3/Section 7 | Archive Adv. Matter Compressor | -3/Section 7 | Archive Exp. Energy Well | -3/Section 7 | Archive Hvy. Neutron Cannon | -3/Section 7 | Archive Cld. Plasma Rifle | -3/Section 7 | Archive Spectral Analyzer | -3/Section 7 | Archive Imp. Lightning Gun | -3/Section 7 | Archive Robot Schematics ------------------ R-06 Scavenger | -3/Section 7 | Archive A-02 Transporter | -3/Section 7 | Archive Fabricated ------------ Microactuators | x2 | -7/Factory Nuclear Pulse Thruster | x2 | -7/Factory Imp. Force Field | x2 | -6/Factory | Preloaded Nuclear Pulse Thruster | x2 | -6/Factory Core Analyzer | x2 | -6/Factory Phasing Sabre | x1 | -5/Factory Phasing Sabre | x1 | -5/Factory Actuator Array | x2 | -5/Factory Graphene Brace | x2 | -4/Factory Repaired ---------- Nothing Alien Tech Used ----------------- Sigix Broadsword Subatomic Replicator Core Reset Matrix Integrated Dissipator LRC Insulator LRC Inertial Stabilizer Transdimensional Reconstructor Achievements -------------- 404 Challenges ------------ None RPGLIKE | -11 -10 -9 -8 -7 -7 -7 -7 -7 -6 -6 -6 -6 -6 -5 -5 -5 -5 -5 -4 -4 -4 -4 -4 -4 -3 -3 -3 -2 -1 -1 -1 --------- Run | Yrd Mat Mat Mat Fac Low Low Zio Dee Pro Fac Low Low Dat Pro Fac Upp Upp War Pro Fac Ext Cet Arc Hub Res Qua Sec Res Acc Com Ac0 Levels Raised 36 | . . 2 2 4 . 1 . 1 2 4 1 . 1 1 2 1 . . 2 . 2 . . . 2 . 1 1 3 3 . XP Earned 57646 | 3000 200 3030 3582 5285 700 1250 650 1000 3000 5773 1037 578 1098 1763 3741 513 290 778 2410 792 2086 249 224 469 1645 1045 850 1386 4551 4039 632 XP Spent 56820 | 3000 . 600 870 7200 2850 750 . 2700 . 9000 . . 2000 2250 3100 . . 1350 3260 . 1500 . . . 2600 . 2900 1750 1550 6550 1040 Upgrades 83 | 5 . 1 4 9 7 1 . 6 . 7 . . 1 2 2 . . 2 7 . 1 . . . 1 . 1 1 1 20 4 Propulsion Slot 2 | 1 . . . . . . . . . . . . . . 1 . . . . . . . . . . . . . . . . Utility Slot 9 | . . . . 1 . . . . . 4 . . 1 . 1 . . . . . . . . . 1 . 1 . . . . Weapon Slot 3 | 3 . . . . . . . . . . . . . . . . . . . . . . . . . . . . . . . Core Integrity 26 | . . . . . . . . . . . . . . . . . . . 4 . . . . . . . . . . 18 4 Heat Dissipation 2 | . . . 2 . . . . . . . . . . . . . . . . . . . . . . . . . . . . Energy Generation 8 | . . . . . . . . . . 1 . . . . . . . 2 2 . . . . . . . . . 1 2 . Mass Support 5 | 1 . 1 . 1 . . . . . 2 . . . . . . . . . . . . . . . . . . . . . Inventory Capacity 7 | . . . 2 . . 1 . . . . . . . 2 . . . . . . 1 . . . . . . 1 . . . Melee Accuracy 6 | . . . . . . . . 6 . . . . . . . . . . . . . . . . . . . . . . . Hack Attack % 7 | . . . . 7 . . . . . . . . . . . . . . . . . . . . . . . . . . . KI Resistance % 4 | . . . . . 3 . . . . . . . . . . . . . 1 . . . . . . . . . . . . TH Resistance % 4 | . . . . . 4 . . . . . . . . . . . . . . . . . . . . . . . . . . Protomatter Created 8582 | . 12 94 347 342 142 54 157 148 120 560 127 126 88 265 685 87 . 269 568 200 828 155 81 . 299 217 273 289 843 1000 206 Integrity Restored 16035 | . 67 72 911 932 . 268 . 606 360 1112 79 113 142 232 1017 38 38 682 965 199 837 189 100 . 869 148 640 374 1392 3059 594 Core 13658 | . 53 72 911 784 . 232 . 549 360 943 62 98 123 188 834 32 30 580 692 126 567 153 83 . 703 128 546 319 1181 2715 594 Parts 2377 | . 14 . . 148 . 36 . 57 . 169 17 15 19 44 183 6 8 102 273 73 270 36 17 . 166 20 94 55 211 344 . Protomatter Decayed 8000 | . . . 11 . 4 . 8 49 . 100 22 50 . 60 517 11 . 42 . 1 797 88 47 173 6 10 6 565 242 5191 . Game ------ Seed LatentGravitonCloak Manual? 0 Play Time 03:31:21 Cumulative 264.6 hours Start 2025.06.06 @ 17:50:09 End 2025.06.07 @ 15:33:38 Sessions 7 Manual Loads 0 Difficulty Rogue Special Mode Winter2019/RPGLIKE Game No. 266 Rogue 77 Adventurer 177 Explorer 12 Win Type - Total 65 Types 19/1/16/2/12/0/4/5/0/6 Lore% 55 Gallery% 54 Achievement% 71 Wizard Run 0 Options --------- Layout 0 ASCII 0 Keyboard 0 Movement Numpad Keybinds 0 Fullscreen 2 Font 12/Smallcaps Map View 83x54 Zoom Use 0% Tactical HUD 0 Map Filters NONE Filters NONE Steam 1 RUN: d8ddc529-6435-401b-9eb0-b550c2255b75